Cogmind - Beta 16.1 @@@ ROGUE MODE // 2026.01.24 @ 18:20:04 Player: szymekc Result: Destroyed by G-34 Mercenary with Small Laser Performance ------------- Evolutions (0) 0 Regions Visited (1) 200 Robots Destroyed (1) 5 Value Destroyed (7) 7 Prototype IDs (0) 0 Alien Tech Used (0) 0 Bonus (0) 0 TOTAL SCORE: 212 Bonus ------- None Cogmind --------- Core Integrity 0/250 Matter 299/300 Energy 100/100 System Corruption 0% Temperature Cool (6) Movement Core (50) Location -10/Materials Parts ------- > --- POWER (1) -------- (None) > --- PROPULSION (2) --- (None) > --- UTILITY (2) ------ (None) > --- WEAPON (2) ------- (None) > --- INVENTORY (5) ---- (None) Peak State ------------ > --- POWER ------------ Light Ion Engine > --- PROPULSION ------- (None) > --- UTILITY ---------- Improved Terrain Scanner > --- WEAPON ----------- Mining Laser > --- INVENTORY -------- (None) [Rating: 5] Favorites ----------- Power Light Ion Engine Engine Light Ion Engine Propulsion None Utility Improved Terrain Scanner Device Improved Terrain Scanner Weapon Mining Laser Special Weapon Mining Laser Build | -11 -10 ------- Run | Yrd Mat Slots Evolved . | . . Power . | . . Propulsion . | . . Utility . | . . Weapon . | . . Parts Attached 3 | . 3 Power 1 | . 1 Engine 1 | . 1 Core . | . . Reactor . | . . Propulsion . | . . Treads . | . . Leg . | . . Wheel . | . . Hover . | . . Flight . | . . Utility 1 | . 1 Device 1 | . 1 Storage . | . . Processor . | . . Hackware . | . . Protection . | . . Artifact . | . . Weapon 1 | . 1 Energy Gun . | . . Energy Cannon . | . . Ballistic Gun . | . . Ballistic Cannon . | . . Launcher . | . . Special Weapon 1 | . 1 Impact Weapon . | . . Slashing Weapon . | . . Piercing Weapon . | . . Special Melee Weapon . | . . Unidentified Prototypes . | . . Parts Lost 3 | . 3 Power 1 | . 1 Propulsion . | . . Utility 1 | . 1 Weapon 1 | . 1 Highest Loss Streak 3 | . 3 To Critical Strikes . | . . Average Backups . | . . Power . | . . Propulsion . | . . Utility . | . . Weapon . | . . Tool/Special . | . . Unused Backups . | . . Power . | . . Propulsion . | . . Utility . | . . Weapon . | . . Tool/Special . | . . Average Slot Usage (%) 9 | . 9 Engine 2 | . 2 Device 4 | . 4 Special Weapon 3 | . 3 Peak Build Rating 5 | . 5 Average Rating . | . . On Entrance . | . . Avg Prop Armor Cover (%) . | . . Naked Turns 85 | . 85 Heaviest Build 4 | . 4 Greatest Support 3 | 3 3 Greatest Overweight (x) 1 | . 1 Average Overweight (x) . | . . Largest Inventory Capacity 5 | 5 5 Average Capacity 5 | 5 5 Most Carried . | . . Average Carried . | . . Final Capacity 5 | 5 5 Final Carried . | . . Class Distribution -------------------- 100% | Mutant Dominant Class ---------------- Mutant | -10/Materials Resources | -11 -10 ----------- Run | Yrd Mat Matter Collected 210 | 200 10 Remotely . | . . Salvage Created 30 | . 30 Parts 4 | . 4 Haulers Intercepted . | . . Recyclers Shooed . | . . Parts Field Recycled . | . . Retrieved Matter . | . . Parts Self-Destructed . | . . Prevented . | . . Parts Restored . | . . Kills | -11 -10 ------- Run | Yrd Mat Combat Hostiles Destroyed . | . . Classes Destroyed 1 | . 1 Tunneler 1 | . 1 Best Kill Streak 1 | . 1 Combat Bots Only . | . . Max Kills in Single Turn 1 | . 1 Gunslinging . | . . Exploded . | . . Melee . | . . Uniques/NPCs Destroyed . | . . Combat | -11 -10 -------- Run | Yrd Mat Hostile Shots Fired 37 | . 37 Missed 9 | . 9 Hits 28 | . 28 Projectile 28 | . 28 Damage Taken 354 | . 354 Core 253 | . 253 Absorbed by Shields . | . . Core Remaining (%) 100 | 100 . Volleys Fired 3 | . 3 Largest 1 | . 1 Hottest 100 | . 100 Shots Fired 3 | . 3 Gun . | . . Cannon . | . . Launcher . | . . Special 3 | . 3 Kinetic . | . . Thermal 3 | . 3 Explosive . | . . Electromagnetic . | . . Robot Hit Streak . | . . Robot Miss Streak . | . . Penetration Max . | . . Secondary Targets . | . . Shots Hit Robots . | . . Core Hits 3 | . 3 Critical Kills . | . . Critical Parts Destroyed . | . . Critical Strikes . | . . Melee Attacks . | . . Impact . | . . Slashing . | . . Piercing . | . . Sneak Attacks . | . . Combat Hostiles . | . . Follow-up Attacks . | . . Damage Inflicted 46 | . 46 Guns . | . . Cannons . | . . Explosions . | . . Melee . | . . Ramming 46 | . 46 Kinetic . | . . Thermal . | . . Explosive . | . . Electromagnetic . | . . Impact . | . . Slashing . | . . Piercing . | . . Highest Corruption . | . . Average Corruption . | . . Corruption Purged . | . . Corruption Blocked . | . . Overload Shots . | . . Overflow Damage . | . . Projectiles . | . . Explosions . | . . Melee . | . . Knockbacks . | . . Impact . | . . Kinetic . | . . Secondary . | . . Self-Inflicted Damage 30 | . 30 Shots . | . . Rammed 8 | . 8 Targets Rammed 8 | . 8 Kicked . | . . Crushed . | . . Highest Temperature 31 | . 31 Average Temperature 24 | . 24 Received Heat Transfer 168 | . 168 Siege Activations . | . . Martial Activations . | . . Shielding Activations . | . . Robots Disrupted . | . . Combat Hostiles . | . . Robots Corrupted . | . . Combat Hostiles . | . . Parts Fried . | . . Impact Corruptions . | . . Robots Melted . | . . Combat Hostiles . | . . Parts Melted . | . . Heat Transferred . | . . Parts Sabotaged . | . . Parts Stolen . | . . Parts Stripped . | . . Power Chain Reactions . | . . Alert | -11 -10 ------- Run | Yrd Mat Maximum Alert Level . | . . Low Security (%) 100 | 100 100 Level 1 . | . . Level 2 . | . . Level 3 . | . . Level 4 . | . . Level 5 . | . . High Security . | . . Max Security . | . . Peak Influence 12 | . 12 Initial . | . . Average 1 | . 1 Influence Increases 17 | . 17 Destroy 0b10 Robot/NC 5 | . 5 Successful Hack 12 | . 12 Influence Decreases 17 | . 17 Time Decay 17 | . 17 Squads Dispatched 1 | . 1 Investigation . | . . Extermination . | . . Reinforcement 1 | . 1 Assault . | . . Garrison . | . . Intercept . | . . Searches Triggered . | . . Construction Impeded . | . . Haulers Reinforced . | . . Active Scanning Responses . | . . Cargo Convoy Interrupts . | . . Stealth | -11 -10 --------- Run | Yrd Mat Distress Signals . | . . Communications Jammed . | . . Distress Signals . | . . Times Spotted 4 | . 4 Peak Tracking Total 3 | . 3 Tactical Retreats . | . . Traps | -11 -10 ------- Run | Yrd Mat Traps Triggered . | . . Indirectly . | . . Trap Hack Attempts . | . . Triggered . | . . Disarmed . | . . Reprogrammed . | . . Reused . | . . Traps Extracted . | . . Installed . | . . Triggered . | . . Machines | -11 -10 ---------- Run | Yrd Mat Machines Disabled . | . . Max in Single Turn . | . . Machines Repaired . | . . Machines Dismantled . | . . Machines Sabotaged . | . . Overloaded Fab Kills . | . . Hacking | -11 -10 --------- Run | Yrd Mat Machines Accessed 2 | . 2 Terminals 2 | . 2 Fabricators . | . . Repair Stations . | . . Recycling Units . | . . Scanalyzers . | . . Garrison Access . | . . Total Hacks 6 | . 6 Successful 2 | . 2 Failed 4 | . 4 Catastrophic . | . . Database Lockouts . | . . Manual 6 | . 6 Terminals 6 | . 6 Fabricators . | . . Repair Stations . | . . Recycling Units . | . . Scanalyzers . | . . Garrison Access . | . . Terminal Hacks 2 | . 2 Zone Layout 2 | . 2 Fabricator Hacks . | . . Repair Station Hacks . | . . Recycling Unit Hacks . | . . Scanalyzer . | . . Garrison Access Hacks . | . . Unauthorized Hacks . | . . Terminals . | . . Fabricators . | . . Repair Stations . | . . Recycling Units . | . . Scanalyzers . | . . Garrison Access . | . . Data Cores Recovered . | . . Used . | . . Hacking Detections 2 | . 2 Full Trace Events . | . . Feedback Events . | . . Feedback Blocked . | . . Robot Schematics Acquired . | . . Robots Built . | . . Authchips . | . . Time . | . . Total Robot Build Rating . | . . Part Schematics Acquired . | . . Parts Built . | . . Authchips . | . . Time . | . . Total Part Build Rating . | . . Part Studies Acquired . | . . Parts Repaired . | . . Time . | . . Parts Recycled . | . . Recycled Matter . | . . Retrieved Matter . | . . Retrieved Components . | . . Parts Scanalyzed . | . . Part Schematics Acquired . | . . Parts Damaged . | . . Bothacking | -11 -10 ------------ Run | Yrd Mat Used RIF Installer . | . . Robots Hacked . | . . Non-combat . | . . Combat . | . . Robot Hacks Applied . | . . Relay Couplers Released . | . . Fabnet Peak Effective % . | . . Robots Rewired . | . . Allies Hacked . | . . Hacks Repelled . | . . Allies | -11 -10 -------- Run | Yrd Mat Total Allies . | . . Largest Group . | . . Highest-Rated Group . | . . Highest-Rated Ally . | . . Total Orders . | . . Ally Attacks . | . . Total Damage . | . . Kills . | . . Allies Corrupted . | . . Allies Melted . | . . Intel | -11 -10 ------- Run | Yrd Mat Active Infowar (turns) 33 | . 33 Terrain 33 | . 33 Robot Analysis Total . | . . Derelict Logs Recovered . | . . Drone Launches . | . . Drone Recoveries . | . . Exploration | -11 -10 ------------- Run | Yrd Mat Turns Passed 145 | 9 136 Spaces Moved 151 | 19 132 Core 151 | 19 132 Treads . | . . Legs . | . . Wheels . | . . Hover . | . . Flight . | . . Fastest Speed 50 | 50 50 Average Speed 50 | 50 51 Slowest Speed 100 | 50 100 Overloaded Moves . | . . Propulsion Burnouts . | . . Robots Hopped . | . . Potential Cave-ins . | . . Cave-ins Triggered . | . . Exploration Rate (%) 15 | 3 27 Regions Visited 1 Branch Regions . Pre-discovered Areas . | . . Known Exits Taken . | . . Unknown Exits Taken 1 | 1 . Scrap Searched . | . . Spaces Dug . | . . Terrain Destroyed . | . . Melee . | . . Projectile . | . . AOE . | . . Terrain Rammed 1 | . 1 Walls Destroyed . | . . Machines Disabled . | . . Actions | -11 -10 --------- Run | Yrd Mat Total 208 | 18 190 Wait 43 | . 43 Move 150 | 18 132 Hop . | . . Pick Up . | . . Fast Attach 3 | . 3 Attach . | . . Detach . | . . Swap . | . . Drop . | . . Fire 3 | . 3 Melee . | . . Ram 9 | . 9 Kick . | . . Crush . | . . Escape Stasis . | . . Rewire . | . . Trap . | . . Miscellaneous . | . . Route ------- -11/Scrapyard -10/Materials (discovered 1 exit: [*Mat]) History --------- Turn | Location | Event 4 | -11/Scrapyard | Discovered new exit (range 14) 10 | -11/Scrapyard | Entered Materials 42 | -10/Materials | Discovered new exit (range 6) 107 | -10/Materials | Core integrity fell below 50% 135 | -10/Materials | Core integrity fell below 20% 146 | -10/Materials | Destroyed by G-34 Mercenary with Small Laser Last Messages --------------- 00065_ Slammed into W-16 Scout. 00071_ Destabilizing: Core damaged (-10). 00074_ Slammed into Earth. 00074_ Destabilizing: Core damaged (-5). 00075_ T-07 Excavator is excavating. 00075_ Slammed into T-07 Excavator. 00077_ T-07 Excavator destroyed. 00079_ Acquired Mining Laser. 00080_ Acquired 10 matter. 00095_ Slammed into G-34 Mercenary. 00096_ Destabilizing: Core damaged (-2). 00097_ Acquired Imp. Terrain Scanner. 00098_ Slammed into G-34 Mercenary. 00099_ Acquired Lgt. Ion Engine. 00100_ Mining Laser destroyed. 00110_ Lgt. Ion Engine destroyed. 00125_ U-05 Engineer lays Concrete. 00130_ Imp. Terrain Scanner destroyed. 00130_ U-05 Engineer builds a Wall. 00136_ U-05 Engineer lays Concrete. Map ----- +----------------------------------------------------+ | ?????????????????????????????????????? | | ?????????????????????????????????????? | | ?????????????????????????????????????? | | ?????????????????????????????????????? | | ???########??????????????????????????? | | ???# #??????????????????????????? | | ???# T #??????????????????????????? | | ???# #??????????????????????????? | | ???# #??????????????????????????? | | ???# #??????????????????????????? | | ???# % #??????????????????????????? | | ???####+###??????????????????????????? | | ????# #??????????????????????????? | | ????# #??????????????????????????? | | ????# #??????????????????????????? | | ????# #???????#??????????????????? | | ???## #?????????#????????????????? | | ????### ###??????????????????????????? | | ??????# #????????????????????????????? | | ??????# #????????????????????????????? | | ??????# #####??????????????#?????????? | | ?????##%## =#???#????????????????????? | | ?????# #%%#????????????????????????? | | ?????# %g##???????????????????????? | | ????## # #g##??????????????????????? | | ?????# ### @#??????????????????????? | | ?????# #?####????????????##????????? | | ?????# #???????????#???????????????? | | ?????# #?????????#?#???????????????? | | ?????# ########???????####?????????? | | ?????# + "T" #???????# ????????? | | ?????# # !#???????# ""?????????? | | ?????# + #????#??# ""?????????? | | ?????# # """" #?????#?# ""?????????? | | ?????# # """" ######### ?????????? | | ?????# # """" # ? ?????????? | | ?????# ################ ?????????? | | ?????# #??????????????# ?????????? | | ?????# #??????????????####?????????? | | ?????# #???#?????????????#?????????? | | ?????# #?????????????????#?????????? | | ?????# #?????????????????#????????? | | ????## ##????????????????#???????? | | ????# #????????????????#???????? | | ????# #####???#####????#??????? | | ????# ##T"#???#"""#????#?###### | | ????# ## "#####"Y"######## | | ????# | | ????## ##################### | | ?????# #??????????? """????# ##### | +----------------------------------------------------+ Best States ------------- Heat Dissipation 25 Energy Generation 10 Energy Capacity 125 Matter Stores 300 Matter Capacity 300 Sight Range 16 Terrain Scan Range 16 Terrain Scan Density 10 Evasion (%) 50 Item Schematics ----------------- None Robot Schematics ------------------ None Fabricated ------------ Nothing Repaired ---------- Nothing Studied --------- None Alien Tech Used ----------------- None Achievements -------------- None Challenges ------------ None Game ------ Seed BattleSpreadSubcomponent Manual? 0 Play Time 00:02:28 Cumulative 1109.1 hours Start 2026.01.24 @ 18:18:43 End 2026.01.24 @ 18:20:04 Sessions 1 Manual Loads 0 Difficulty Rogue Special Mode None Game No. 340 Rogue 338 Adventurer 2 Explorer 0 Win Type - Total 82 Types 22/19/19/1/1/1/14/2/1/2 Lore% 97 Gallery% 95 Achievement% 86 Wizard Run 0 Options --------- Layout 0 ASCII 0 Keyboard 1 Movement Numpad Keybinds 0 Fullscreen 1 Font 24/Smallcaps Map View 76x50 Zoom Use 0% Tactical HUD 1 Map Filters NONE Filters NONE Steam 1 RUN: 660b99f3-a57f-45f1-b9a8-dc19e8981adc